bitfinex/quotes_ETHUSD_20240607
["timestamp","ask_amount","ask_price","bid_price","bid_amount"]
[1717736936112,1.23947316,3818.0,3817.6,2.27551325]
[1717736936324,1.23947316,3818.0,3817.7,2.27551325]
[1717736936511,1.23947316,3818.0,3817.5,0.54755103]
[1717736936725,1.23947316,3818.0,3817.6,2.27551615]
[1717736936929,1.23947316,3818.0,3817.7,2.27551615]
[1717736937239,1.23947316,3818.0,3817.5,0.54755103]
[1717736937531,1.23947316,3818.0,3817.6,2.2755131]
[1717736937712,1.23947316,3818.0,3817.7,2.2755131]
[1717736937896,1.23947316,3818.0,3817.5,0.54755103]
[1717736938098,1.23947316,3818.0,3817.6,2.27551442]
[1717736938338,1.23947316,3818.0,3817.7,2.27551442]
[1717736938505,1.23947316,3818.0,3817.5,0.54755103]
[1717736938706,1.23947316,3818.0,3817.6,2.27551426]
[1717736938921,1.23947316,3818.0,3817.7,2.27551426]
[1717736939111,1.23947316,3818.0,3817.5,0.54755103]
[1717736939308,1.23947316,3818.0,3817.6,2.2755131]
[1717736939614,1.23947316,3818.0,3817.5,0.54755103]
[1717736939615,1.23947316,3818.0,3817.7,2.2755131]
[1717736939811,1.23947316,3818.0,3817.5,0.54755103]
[1717736940346,1.23947316,3818.0,3817.6,2.38684555]
[1717736940638,1.23947316,3818.0,3817.7,2.27551375]
[1717736940820,1.23947316,3818.0,3817.6,0.1113318]
[1717736941144,1.23947316,3818.0,3817.7,2.3868399]
[1717736941317,1.23947316,3818.0,3817.7,0.1113318]
[1717736941514,1.23947316,3818.0,3817.5,0.54755103]
[1717736941748,0.55,3818.0,3817.6,2.38684245]
[1717736942043,0.55,3818.0,3817.7,2.27551065]
[1717736942200,0.55,3818.0,3817.6,0.1113318]
[1717736942548,0.55,3818.0,3817.7,2.38684132]
[1717736942763,0.55,3818.0,3817.7,0.1113318]
[1717736943104,0.55,3818.0,3817.5,0.54755103]
[1717736943299,0.55,3818.0,3817.6,2.38684176]
[1717736943542,0.55,3818.0,3817.7,2.27550996]
[1717736943964,0.55,3818.0,3817.8,0.1113318]
[1717736944440,0.55,3818.0,3817.5,0.54755103]
[1717736944644,0.55,3818.0,3817.9,0.1113318]
[1717736944820,0.55,3818.0,3817.5,0.54755103]
[1717736944821,1.16516778,3818.0,3817.7,1.36530395]
[1717736945020,1.16516778,3818.0,3817.9,0.1113318]
[1717736945223,1.16516778,3818.0,3817.5,0.54755103]
[1717736945455,1.16516778,3818.0,3817.9,0.1113318]
[1717736945456,0.55,3818.0,3817.9,0.1113318]
[1717736945664,0.55,3818.0,3817.7,1.36530283]
[1717736945830,0.55,3818.0,3817.9,0.1113318]
[1717736946034,0.55,3818.0,3817.6,1.36530227]
[1717736946336,0.55,3818.0,3817.7,2.3868358]
[1717736946835,0.55,3818.0,3817.7,0.1113318]
[1717736947142,0.55,3818.0,3817.5,0.54755103]
[1717736947354,0.55,3818.0,3817.6,2.38683903]
[1717736947548,0.55,3818.0,3817.7,2.27550723]
[1717736947860,0.55,3818.0,3817.5,0.54755103]
[1717736948041,0.55,3818.0,3817.8,0.1113318]
[1717736948220,1.16516778,3818.0,3817.5,0.54755103]
[1717736948422,0.55,3818.0,3817.9,0.1113318]
[1717736948752,2.61924,3817.9,3817.5,0.54755103]
[1717736948952,2.61924,3817.9,3817.6,2.27553291]
[1717736949265,2.61924,3817.9,3817.7,0.91021316]
[1717736949469,2.61924,3817.9,3817.5,0.54755103]
[1717736949682,2.61924,3817.9,3817.6,2.27553]
[1717736949828,2.61924,3817.9,3817.7,0.910212]
[1717736950163,2.61924,3817.9,3817.5,0.54755103]
[1717736950325,2.61924,3817.9,3817.6,2.27553372]
[1717736950528,2.61924,3817.9,3817.7,0.91021349]
[1717736950717,2.61924,3817.9,3817.5,0.54755103]
[1717736951060,2.61924,3817.9,3817.6,2.27553308]
[1717736951261,2.61924,3817.9,3817.7,0.91021323]
[1717736951424,2.61924,3817.9,3817.5,0.54755103]
[1717736951730,2.61924,3817.9,3817.6,2.27553343]
[1717736951931,2.61924,3817.9,3817.7,0.91021337]
[1717736952131,2.61924,3817.9,3817.5,0.54755103]
[1717736952455,2.61924,3817.9,3817.6,2.27553182]
[1717736952648,2.61924,3817.9,3817.7,0.91021273]
[1717736952840,2.61924,3817.9,3817.5,0.54755103]
[1717736953045,2.61924,3817.9,3817.6,2.27552326]
[1717736953247,2.61924,3817.9,3817.7,2.27552326]
[1717736953562,2.61924,3817.9,3817.5,0.54755103]
[1717736953758,2.61924,3817.9,3817.6,2.27553202]
[1717736953963,2.61924,3817.9,3817.7,2.27553202]
[1717736954161,2.61924,3817.9,3817.5,0.54755103]
[1717736954335,2.61924,3817.9,3817.6,2.27552255]
[1717736954532,2.61924,3817.9,3817.5,0.54755103]
[1717736954533,2.61924,3817.9,3817.7,2.27552255]
[1717736954831,2.61924,3817.9,3817.5,0.54755103]
[1717736955027,2.61924,3817.9,3817.6,2.27556018]
[1717736955229,2.61924,3817.9,3817.7,0.91022407]
[1717736955458,2.61924,3817.9,3817.7,0.1113016]
[1717736955835,2.61924,3817.9,3817.5,0.54755103]
[1717736956037,2.61924,3817.9,3817.8,0.1113016]
[1717736956238,3.16924,3817.9,3817.5,0.54755103]
[1717736956445,2.61924,3817.9,3817.8,0.1113016]
[1717736956646,3.16924,3817.9,3817.5,0.54755103]
[1717736956843,2.61924,3817.9,3817.8,0.1113016]
[1717736957145,3.77980533,3817.9,3817.8,0.1113016]
[1717736957347,3.77980533,3817.9,3817.6,1.3653313]
[1717736957542,3.16924,3817.9,3817.7,1.02152227]
[1717736957746,3.16924,3817.9,3817.7,0.1113016]
[1717736958070,3.16924,3817.9,3817.8,0.91022015]
[1717736958268,3.16924,3817.9,3817.8,1.02152175]
[1717736959498,3.16924,3817.9,3817.8,1.02150649]
[1717736960575,3.16924,3817.9,3817.8,2.38680388]
[1717736961084,3.16924,3817.9,3817.8,1.02150649]
[1717736961580,3.16924,3817.9,3817.8,2.3868043]
[1717736961950,3.16924,3817.9,3817.8,1.02150649]
[1717736962153,3.16924,3817.9,3817.8,2.38680531]
[1717736962501,3.16924,3817.9,3817.8,1.02150649]
[1717736963478,3.16924,3817.9,3817.8,2.38680921]
[1717736966676,3.16924,3817.9,3817.8,2.38681242]
[1717736971649,3.16924,3817.9,3817.8,2.38680748]
[1717736981428,3.16924,3817.9,3817.8,2.38682168]
[1717736987430,3.77980558,3817.9,3817.8,2.38682168]
[1717736988044,3.77980558,3817.9,3817.8,1.02150963]
[1717736988213,3.77980558,3817.9,3817.8,2.38686969]
[1717736989704,3.77980558,3817.9,3817.8,1.02150963]
[1717736991543,6.26500558,3817.9,3817.8,1.02150963]
[1717736992347,6.831144,3817.9,3817.8,1.02150963]
[1717736992707,6.831144,3817.9,3817.8,0.1113016]
[1717736992920,6.831144,3817.9,3817.8,0.91025018]
[1717736993122,6.831144,3817.9,3817.8,1.01780961]
[1717736993338,6.831144,3817.9,3817.8,0.10755943]
[1717736993502,6.831144,3817.9,3817.8,0.9102498]
[1717736993706,6.831144,3817.9,3817.8,1.01780923]
[1717736993906,6.831144,3817.9,3817.8,1.01780931]
[1717736994336,6.26500558,3817.9,3817.8,1.01780931]
[1717736996668,6.26500558,3817.9,3817.8,1.01780409]
[1717736997367,3.77980558,3817.9,3817.8,1.01780955]
[1717736998263,6.85380558,3817.9,3817.8,0.10755943]
[1717736998484,7.41994761,3817.9,3817.8,0.10755943]
[1717736998788,7.41994761,3817.9,3817.1,0.54755103]
[1717736998951,3.40342,3817.7,3817.2,2.27588725]
[1717736999150,3.40342,3817.7,3817.3,0.9103549]
[1717736999441,0.55,3817.6,3817.0,2.88135103]
[1717736999640,0.55,3817.6,3817.1,2.27589066]
[1717736999838,0.55,3817.6,3817.2,2.27589066]
[1717737000041,0.55,3817.6,3817.2,0.91035626]
[1717737000245,1.30515568,3817.6,3817.3,0.91035626]
[1717737000458,1.30515568,3817.6,3817.3,0.10041282]
[1717737000662,5.74101,3817.5,3817.3,0.10041282]
[1717737000863,0.55,3817.4,3817.1,1.36559092]
[1717737001072,0.70461657,3817.3,3816.9,0.54755103]
[1717737001374,0.55,3817.4,3817.0,2.2759907]
[1717737001375,1.11623575,3817.4,3817.0,2.2759907]
[1717737001533,1.11623575,3817.4,3817.1,0.91039628]
[1717737001734,0.55,3817.4,3816.8,2.94895103]
[1717737001966,0.55,3817.4,3816.9,2.27601143]
[1717737002272,0.55,3817.4,3817.0,0.91040457]
[1717737002470,0.55,3817.4,3816.8,2.94895103]
[1717737002669,0.55,3817.4,3816.9,2.27601055]
[1717737002975,0.55,3817.4,3817.0,0.91040422]
[1717737003128,0.55,3817.4,3816.8,2.94895103]
[1717737003334,0.55,3817.4,3817.1,0.784]
[1717737008678,0.55,3817.4,3816.6,0.54755103]
[1717737008980,0.55,3817.4,3817.1,0.784]
[1717737009176,0.550701,3817.3,3817.1,0.784]
[1717737009383,0.55,3817.4,3817.1,0.784]
[1717737009974,0.55,3817.4,3816.6,0.54755103]
[1717737010153,0.55,3817.4,3817.0,0.784]
[1717737010339,0.55,3817.4,3816.6,0.54755103]
[1717737010694,2.61965,3817.3,3816.9,0.784]
[1717737011179,2.61965,3817.3,3817.2,0.784]
[1717737011358,3.16965,3817.3,3816.6,0.54755103]
[1717737011567,3.16965,3817.3,3817.2,0.784]
[1717737012138,3.720365,3817.3,3816.6,0.54755103]
[1717737012376,2.61984,3817.1,3816.9,0.784]
[1717737012838,2.61984,3817.1,3816.8,2.3226]
[1717737013041,2.61984,3817.1,3817.0,0.784]
[1717737015182,2.61954,3817.5,3817.0,0.784]
[1717737015342,2.61954,3817.5,3817.4,0.784]
[1717737015538,6.16954,3817.5,3817.4,0.784]
[1717737018182,6.16954,3817.5,3817.3,0.784]
[1717737019711,5.61954,3817.5,3817.3,0.784]
[1717737019846,0.62723078,3817.4,3817.3,0.784]
[1717737020162,2.61966,3817.3,3816.8,2.3226]
[1717737020353,2.61966,3817.3,3817.2,0.784]
[1717737023785,2.61989,3817.0,3816.3,0.54755103]
[1717737023986,2.61989,3817.0,3816.9,0.784]
[1717737024285,2.61989,3817.0,3816.2,1.91325312]
[1717737024286,2.93850675,3817.0,3816.2,0.54755103]
[1717737024587,2.61989,3817.0,3816.9,0.784]
[1717737026082,2.61989,3817.0,3816.2,0.54755103]
[1717737026293,2.61989,3817.0,3816.9,0.784]
[1717737033028,2.61989,3817.0,3816.3,0.54755103]
[1717737033243,4.91109,3817.0,3816.9,0.90521308]
[1717737033413,5.46338822,3817.0,3816.9,0.784]
[1717737035091,5.46338822,3817.0,3816.3,0.54755103]
[1717737035396,4.91109,3817.0,3816.9,0.784]
[1717737038344,4.91109,3817.0,3816.3,0.54755103]
[1717737038635,4.91109,3817.0,3816.9,0.784]
[1717737043106,2.61989,3817.0,3816.9,0.784]
[1717737043533,2.61989,3817.0,3816.9,0.90215114]
[1717737051152,0.61189221,3817.3,3816.9,3.29415114]
[1717737051361,0.61189221,3817.3,3817.2,0.784]
[1717737051560,7.49,3817.6,3817.3,2.392]
[1717737051561,0.56628469,3817.5,3817.3,2.392]
[1717737051710,0.56628469,3817.5,3817.4,0.784]
[1717737051912,7.49,3817.6,3817.4,3.37742501]
[1717737052212,0.04560283,3818.0,3817.5,2.39395157]
[1717737052414,0.04560283,3818.0,3817.9,0.784]
[1717737052616,0.04560283,3818.0,3817.9,0.9019785]
[1717737053006,2.61904,3818.2,3817.9,0.9019785]
[1717737053206,2.61904,3818.2,3818.1,0.784]
[1717737056615,0.04616452,3818.3,3818.1,0.784]
[1717737057259,0.04616452,3818.3,3818.2,0.11772229]
[1717737057652,0.04616452,3818.3,3818.1,0.784]
[1717737057850,0.04616452,3818.3,3818.2,0.11772229]
[1717737058053,0.04616452,3818.3,3818.1,0.784]
[1717737058453,0.04616452,3818.3,3818.2,0.11769849]
[1717737058655,0.04616452,3818.3,3818.1,0.784]
[1717737058839,0.04616452,3818.3,3818.2,0.11738302]
[1717737059021,0.04616452,3818.3,3818.1,0.784]
[1717737059222,0.04616452,3818.3,3818.2,0.11738302]
[1717737059423,0.04616452,3818.3,3818.1,0.784]
[1717737059619,0.04616452,3818.3,3818.2,0.11738302]
[1717737059967,0.04616452,3818.3,3818.1,0.784]
[1717737060458,0.04616452,3818.3,3818.2,0.11738302]
[1717737060663,0.04616452,3818.3,3818.1,0.784]
[1717737061062,0.04616452,3818.3,3818.2,0.11738302]
[1717737061269,0.04616452,3818.3,3818.1,0.784]
[1717737061455,0.04616452,3818.3,3818.2,0.11738302]
[1717737061656,0.04616452,3818.3,3818.1,0.784]
[1717737061827,0.04616452,3818.3,3818.2,0.11738302]
[1717737062029,0.04616452,3818.3,3818.1,0.784]
[1717737062228,0.04616452,3818.3,3818.2,0.11738302]
[1717737062463,0.04616452,3818.3,3818.1,0.784]
[1717737062683,0.04616452,3818.3,3818.2,0.11738302]
[1717737062823,0.04616452,3818.3,3818.1,0.784]
[1717737063023,0.04616452,3818.3,3818.2,0.11738302]
[1717737063370,0.04616452,3818.3,3818.1,0.784]
[1717737063869,0.04616452,3818.3,3818.2,0.11738302]
[1717737064080,0.04616452,3818.3,3818.1,0.784]
[1717737064283,0.04616452,3818.3,3818.2,0.11738302]
[1717737064583,0.04616452,3818.3,3818.1,0.784]
[1717737064944,0.04616452,3818.3,3818.2,0.11738302]
[1717737065441,0.04616452,3818.3,3818.1,0.784]
[1717737065686,0.04616452,3818.3,3818.2,0.11738302]
[1717737065864,0.04616452,3818.3,3818.1,0.784]
[1717737066070,0.04616452,3818.3,3818.2,0.11738302]
[1717737066382,0.04616452,3818.3,3818.1,0.784]
[1717737066783,0.04616452,3818.3,3818.2,0.11738302]
[1717737066980,0.04616452,3818.3,3818.2,0.90138302]
[1717737067278,0.04616452,3818.3,3818.2,0.784]
[1717737068683,0.04616452,3818.3,3818.0,2.4848]
[1717737068857,0.04616452,3818.3,3818.2,0.784]
[1717737072905,0.04616452,3818.3,3817.8,2.265]
[1717737073109,0.04616452,3818.3,3818.2,0.784]
[1717737076096,0.04616452,3818.3,3817.8,2.265]
[1717737076293,0.04616452,3818.3,3818.2,0.784]
[1717737078286,0.04616452,3818.3,3817.8,2.265]
[1717737078587,0.04616452,3818.3,3818.2,0.784]
[1717737079882,0.04616452,3818.3,3817.6,2.3804]
[1717737080079,0.04616452,3818.3,3818.2,0.784]
[1717737082520,5.68712452,3818.3,3818.1,0.784]
[1717737082743,0.56609627,3818.2,3818.1,0.784]
[1717737082882,1.19597784,3818.2,3818.1,0.784]
[1717737085977,0.62988157,3818.2,3818.1,0.784]
[1717737086305,1.19598519,3818.2,3818.1,0.784]
[1717737087691,0.62988157,3818.2,3818.1,0.784]
[1717737088279,1.19598492,3818.2,3818.1,0.784]
[1717737090994,1.19598492,3818.2,3817.5,2.4288]
[1717737091199,1.19598492,3818.2,3818.1,0.784]
[1717737094310,0.62988157,3818.2,3818.1,0.784]
[1717737094509,0.04616452,3818.3,3818.1,0.784]
[1717737094722,0.04616452,3818.3,3818.2,0.11352956]
[1717737103530,0.04616452,3818.3,3818.2,1.02367902]
[1717737104810,0.04616452,3818.3,3818.2,0.11352956]
[1717737107337,0.04616452,3818.3,3818.2,1.02368121]
[1717737107839,0.04616452,3818.3,3818.2,0.11352956]
[1717737108303,0.04616452,3818.3,3818.2,1.02367958]
[1717737108940,0.04616452,3818.3,3818.2,1.80767958]
[1717737109835,0.04616452,3818.3,3818.2,0.89752956]
[1717737110360,0.04616452,3818.3,3818.2,1.8076733]
[1717737114353,0.04616452,3818.3,3818.2,0.89752956]
[1717737115328,0.6738428,3818.3,3818.2,0.89752956]
[1717737115529,0.6738428,3818.3,3818.2,0.11352956]
[1717737115846,0.6738428,3818.3,3818.2,0.784]
[1717737116047,3.1016428,3818.3,3818.2,0.8974522]
[1717737116248,3.66774615,3818.3,3818.2,0.8974522]
[1717737116652,3.66774615,3818.3,3818.2,0.784]
[1717737118517,3.66774615,3818.3,3818.2,0.8974522]
[1717737118855,3.66774615,3818.3,3818.2,0.784]
[1717737119649,3.66777812,3818.3,3818.2,0.784]
[1717737121221,3.1016428,3818.3,3818.2,0.784]
[1717737121421,3.66777395,3818.3,3818.2,0.784]
[1717737122222,3.04009567,3818.3,3818.2,0.784]
[1717737122547,2.47396452,3818.3,3818.2,0.784]
[1717737123235,2.47396452,3818.3,3818.2,0.8974522]
[1717737123532,2.47396452,3818.3,3818.2,0.784]
[1717737123740,0.04616452,3818.3,3818.2,0.8974522]
[1717737124060,0.04616452,3818.3,3818.2,0.784]
[1717737124639,0.04616452,3818.3,3818.2,0.8974522]
[1717737124839,0.04616452,3818.3,3818.2,0.784]
[1717737126549,0.04616452,3818.3,3818.2,0.8975117]
[1717737126750,0.04616452,3818.3,3818.2,0.784]
[1717737127157,0.04616452,3818.3,3818.2,0.8975117]
[1717737127354,0.04616452,3818.3,3818.2,0.784]
[1717737127835,0.04616452,3818.3,3818.2,0.8975117]
[1717737128033,0.04616452,3818.3,3818.2,0.784]
[1717737128471,0.04616452,3818.3,3818.2,0.8975117]
[1717737129675,0.04616452,3818.3,3818.2,0.784]
[1717737129881,0.04616452,3818.3,3818.2,0.8975117]
[1717737130578,0.04616452,3818.3,3818.2,0.784]
[1717737130979,0.04616452,3818.3,3818.2,0.8975117]
[1717737133403,0.04616452,3818.3,3818.0,2.3362]
[1717737133606,0.04616452,3818.3,3818.2,0.8975117]
[1717737133804,0.04616452,3818.3,3818.2,0.784]
[1717737133971,0.04616452,3818.3,3818.2,0.8975117]
[1717737138363,0.04616452,3818.3,3818.2,1.80766195]
[1717737140998,0.04616452,3818.3,3818.2,1.69415025]
[1717737141375,0.04616452,3818.3,3818.2,1.80761137]
[1717737141690,0.04616452,3818.3,3818.2,0.89746112]
[1717737141889,0.04616452,3818.3,3818.2,1.80761272]
[1717737142396,0.04616452,3818.3,3818.2,1.80761269]
[1717737142765,0.04616452,3818.3,3818.2,1.80761265]
[1717737144297,0.04616452,3818.3,3818.2,1.80761268]
[1717737146505,0.04616452,3818.3,3818.2,0.89746112]
[1717737162904,0.04616452,3818.3,3818.2,1.80761825]
[1717737163940,0.04616452,3818.3,3818.2,0.89746112]
[1717737164310,0.04616452,3818.3,3818.2,1.80762793]
[1717737165045,0.04616452,3818.3,3818.2,0.89746112]
[1717737165545,0.04616452,3818.3,3818.2,1.02362944]
[1717737165746,0.04616452,3818.3,3818.2,1.80762944]
[1717737175435,0.04616452,3818.3,3818.2,3.17288173]
[1717737176551,0.04616452,3818.3,3818.2,1.80762944]
[1717737177663,0.04616452,3818.3,3818.2,1.02362944]
[1717737177863,0.04616452,3818.3,3818.2,1.80762944]
[1717737179963,0.04616452,3818.3,3818.2,3.17290583]
[1717737180370,0.04616452,3818.3,3818.2,1.80762944]
[1717737181567,0.04616452,3818.3,3818.2,3.17287881]
[1717737182883,0.04616452,3818.3,3818.2,1.80762944]
[1717737184979,0.04616452,3818.3,3818.2,0.89746112]
[1717737185268,0.67384135,3818.3,3818.2,0.89746112]
[1717737185841,0.67384135,3818.3,3818.2,0.11346112]
[1717737186155,2.61904,3818.2,3817.9,0.54755103]
[1717737186476,2.61904,3818.2,3817.5,1.09613711]
[1717737186477,2.61904,3818.2,3818.1,0.784]
[1717737186664,3.76227382,3818.2,3818.1,0.784]
[1717737186975,3.7622767,3818.2,3818.1,0.784]
[1717737187177,3.80787463,3818.2,3818.1,0.784]
[1717737187370,3.80787463,3818.2,3817.5,0.54755103]
[1717737187543,3.80787463,3818.2,3818.1,0.784]
[1717737187933,3.80787463,3818.2,3817.5,0.54755103]
[1717737188134,3.80787463,3818.2,3818.1,0.784]
[1717737188371,3.80787213,3818.2,3818.1,0.784]
[1717737188681,3.80787213,3818.2,3818.1,0.89724158]
[1717737189670,3.80787213,3818.2,3818.1,0.784]
[1717737190848,3.80787213,3818.2,3818.1,0.89724158]
[1717737191177,3.80787213,3818.2,3818.1,0.784]
[1717737191880,3.80787213,3818.2,3818.1,0.89724158]
[1717737192186,3.80787213,3818.2,3818.1,0.784]
[1717737192543,3.80787213,3818.2,3818.1,0.89724158]
[1717737192941,3.80787213,3818.2,3818.1,0.784]
[1717737193279,3.80787213,3818.2,3818.1,0.89724158]
[1717737194089,3.80787213,3818.2,3818.1,0.784]
[1717737195384,3.24170556,3818.2,3818.1,0.784]
[1717737195594,3.80788579,3818.2,3818.1,0.784]
[1717737202189,3.24170556,3818.2,3818.1,0.784]
[1717737203222,2.6193,3817.9,3817.4,0.54755103]
[1717737203705,2.6193,3817.9,3817.8,0.784]
[1717737206377,2.61956,3817.5,3817.1,2.3244]
[1717737206585,2.61956,3817.5,3817.4,0.784]
[1717737206804,2.61956,3817.5,3817.4,0.89744098]
[1717737207392,2.66516459,3817.5,3817.4,0.89744098]
[1717737207589,2.66516459,3817.5,3817.4,0.784]
[1717737207789,3.21678687,3817.5,3817.4,0.784]
[1717737208175,4.7886488,3817.5,3817.4,0.89744098]
[1717737209011,3.21678687,3817.5,3817.4,0.89744098]
[1717737209196,3.21678687,3817.5,3817.4,0.11344098]
[1717737209392,3.21678687,3817.5,3817.4,0.89744098]
[1717737209717,3.17118228,3817.5,3817.4,0.784]
[1717737209922,4.74303481,3817.5,3817.4,0.784]
[1717737210487,4.74300877,3817.5,3817.4,0.784]
[1717737212021,2.61976,3817.2,3816.8,2.4544]
[1717737212202,2.61976,3817.2,3817.1,0.784]
[1717737212611,2.61996,3816.9,3816.7,0.00505366]
[1717737212922,2.61996,3816.9,3816.8,0.784]
[1717737213422,2.61996,3816.9,3816.7,0.00505366]
[1717737213721,2.61996,3816.9,3816.8,0.784]
[1717737214431,2.61996,3816.9,3816.7,0.00505366]
[1717737214601,2.61996,3816.9,3816.8,0.784]
[1717737220555,2.61996,3816.9,3816.8,3.0557]
[1717737222459,2.61996,3816.9,3816.8,2.2717]
[1717737222628,2.61996,3816.9,3816.7,0.00505366]
[1717737222802,2.61996,3816.9,3816.8,0.784]
[1717737225342,2.61996,3816.9,3816.8,0.89761662]
[1717737230281,2.66557047,3816.9,3816.8,0.89761662]
[1717737241577,4.23769437,3816.9,3816.8,3.30171662]
[1717737241774,4.23769437,3816.9,3816.8,3.63239365]
[1717737241968,2.66557047,3816.9,3816.8,5.90854186]
[1717737242757,0.04561047,3816.9,3816.8,5.90854186]
[1717737245371,2.61966,3817.3,3816.9,2.4218]
[1717737245565,0.04560397,3817.4,3817.2,2.4218]
[1717737245763,0.04560397,3817.4,3817.3,0.784]
[1717737245967,0.04560397,3817.4,3817.3,1.69445928]
[1717737246307,0.04560397,3817.4,3817.3,3.17377213]
[1717737247007,0.04560397,3817.4,3817.3,1.80826633]
[1717737248601,0.04560397,3817.4,3817.3,0.89780705]
[1717737250508,1.27494771,3817.4,3817.3,0.11380705]
[1717737250801,1.27494771,3817.4,3817.3,0.784]
[1717737251003,2.84707161,3817.4,3817.3,0.784]
[1717737251404,2.6197,3817.3,3816.8,0.54931427]
[1717737251565,2.6197,3817.3,3816.9,2.2761511]
[1717737251566,4.1918239,3817.3,3816.9,2.2761511]
[1717737251774,4.1918239,3817.3,3817.2,0.784]
[1717737251977,4.79513402,3817.3,3817.2,0.784]
[1717737252174,4.79513402,3817.3,3817.2,0.89767608]
[1717737252570,7.05663402,3817.3,3817.2,0.89767608]
[1717737252776,6.05083966,3817.3,3817.2,0.784]
[1717737252986,5.48451012,3817.3,3817.2,0.89767608]
[1717737253408,5.48451012,3817.3,3817.2,0.784]
[1717737253409,6.05083966,3817.3,3817.2,0.784]
[1717737253884,6.05083966,3817.3,3817.2,0.89767608]
[1717737254085,6.05083966,3817.3,3817.2,0.784]
[1717737254296,6.05083966,3817.3,3817.2,0.89767608]
[1717737254620,6.05083966,3817.3,3817.2,0.784]
[1717737255521,3.78933966,3817.3,3817.2,0.784]
[1717737255679,2.6197,3817.3,3817.2,0.89767608]
[1717737256024,4.19180699,3817.3,3817.2,0.89767608]
[1717737257136,4.19208965,3817.3,3817.2,0.89767608]
[1717737257298,2.6197,3817.3,3817.2,0.89767608]
[1717737260432,4.19240799,3817.3,3817.2,0.89767608]
[1717737260955,3.22306392,3817.3,3817.2,0.11367608]
[1717737261156,3.22306392,3817.3,3817.2,0.784]
[1717737261293,3.22306392,3817.3,3817.2,0.89767608]
[1717737262445,3.22306392,3817.3,3817.2,0.11367608]
[1717737262592,3.22306392,3817.3,3817.2,0.89767608]
[1717737262800,3.22306392,3817.3,3817.2,0.784]
[1717737263034,3.22306392,3817.3,3817.2,0.89777134]
[1717737263812,5.67666392,3817.3,3817.2,0.89777134]
[1717737264020,6.24295696,3817.3,3817.2,0.89777134]
[1717737264709,3.78935696,3817.3,3817.2,0.89777134]
[1717737265009,3.22306392,3817.3,3817.2,0.89777134]
[1717737268215,0.61189701,3817.4,3817.2,0.89777134]
[1717737268414,1.57212798,3817.4,3817.3,4.63711366]
[1717737268614,0.56629304,3817.6,3817.4,2.3612]
[1717737268916,0.04559849,3817.7,3817.5,3.05991366]
[1717737269122,0.04559849,3817.7,3817.5,3.01411084]
[1717737269434,0.04559849,3817.7,3817.6,3.05991366]
[1717737269621,0.04559849,3817.7,3817.6,2.27591366]
[1717737269821,0.04559849,3817.7,3817.6,0.784]
[1717737270130,0.04559849,3817.7,3817.6,3.68763234]
[1717737270839,0.04559849,3817.7,3817.6,1.02412557]
[1717737271248,0.04559849,3817.7,3817.6,0.89787553]
[1717737271453,0.04559849,3817.7,3817.6,1.80814833]
[1717737271760,0.04559849,3817.7,3817.6,3.17355406]
[1717737272316,0.04559849,3817.7,3817.6,1.80814833]
[1717737272730,0.04559849,3817.7,3817.6,3.1735393]
[1717737272933,0.04559849,3817.7,3817.6,1.80814833]
[1717737273458,0.04559849,3817.7,3817.6,0.89787553]
[1717737274936,0.04559849,3817.7,3817.6,1.80814097]
[1717737276072,0.04559849,3817.7,3817.6,0.89787553]
[1717737277367,0.04559849,3817.7,3817.6,0.11387553]
[1717737277573,0.04559849,3817.7,3817.3,0.54969253]
[1717737277773,0.04559849,3817.7,3817.6,0.89742309]
[1717737277973,0.04559849,3817.7,3817.6,0.784]
[1717737278159,0.04559849,3817.7,3817.6,0.89742309]
[1717737281533,0.04054483,3817.7,3817.6,0.89742309]
[1717737288496,0.04054483,3817.7,3817.6,0.11342309]
[1717737288675,0.04054483,3817.7,3817.6,0.89742309]
[1717737288995,0.04054483,3817.7,3817.6,0.89763142]
[1717737291204,0.04054483,3817.7,3817.6,0.11363142]
[1717737291414,0.04054483,3817.7,3817.6,0.784]
[1717737291722,0.04054483,3817.7,3817.6,0.89763142]
[1717737295882,1.61238212,3817.7,3817.6,0.89763142]
[1717737298109,0.04054483,3817.7,3817.6,0.89763142]
[1717737298724,0.60674025,3817.7,3817.6,0.89763142]
[1717737299009,0.04054483,3817.7,3817.6,0.89763142]
[1717737299803,0.60674025,3817.7,3817.6,0.11363142]
[1717737300006,0.04054483,3817.7,3817.2,1.36555088]
[1717737300181,1.57175869,3817.5,3817.0,0.54969253]
[1717737300384,1.57175869,3817.3,3816.8,3.16965253]
[1717737300588,1.57175869,3817.3,3817.2,0.784]
[1717737300947,1.57175869,3817.5,3817.2,1.6944345]
[1717737301258,1.57175869,3817.5,3817.4,0.784]
[1717737301548,0.56619542,3817.7,3817.4,0.784]
[1717737301851,4.95105,3817.8,3817.6,0.784]
[1717737302159,1.06133165,3817.7,3817.6,0.784]
[1717737303117,1.06133165,3817.7,3817.1,2.3773]
[1717737303346,1.06133165,3817.7,3817.6,0.784]
[1717737303347,0.56622665,3817.7,3817.6,0.784]
[1717737303652,0.56623803,3817.7,3817.6,0.784]
[1717737306669,2.61946,3817.6,3817.5,0.784]
[1717737306838,3.18569803,3817.6,3817.5,0.784]
[1717737307898,3.18569803,3817.6,3816.8,0.54969253]
[1717737307899,9.02863096,3817.6,3816.8,0.54969253]
[1717737308165,2.61969,3817.3,3817.2,0.784]
[1717737308341,5.07729,3817.3,3817.2,0.784]
[1717737308544,5.9416428,3817.3,3817.2,0.784]
[1717737308732,6.50788083,3817.3,3817.2,0.784]
[1717737309664,6.50788083,3817.3,3816.5,0.54969253]
[1717737309874,0.56623803,3817.2,3817.1,0.784]
[1717737310568,0.56623803,3817.2,3817.1,0.89768502]
[1717737310771,1.21702611,3817.2,3817.1,0.89768502]
[1717737311547,1.21709377,3817.2,3817.1,0.89768502]
[1717737311772,1.21709377,3817.2,3817.1,0.784]
[1717737313389,2.61986,3817.0,3816.5,0.54969253]
[1717737313578,2.6201,3816.7,3816.3,0.54969253]
[1717737313871,1.57143122,3816.5,3816.4,0.784]
[1717737314035,2.6201,3816.7,3816.4,0.784]
[1717737314235,3.18652092,3816.7,3816.4,0.784]
[1717737314754,1.57114907,3816.5,3816.4,0.784]
[1717737315268,2.6202,3816.5,3816.4,0.784]